[Event "Titled Tuesday Blitz May 4 2021"]
[White "Salinas Herrera, Pablo"]
[Black "Tikhonov, Viacheslav"]
[WhiteFideId "3407128"]
[BlackFideId "44196407"]
[WhiteElo "2541"]
[BlackElo "1773"]
[Result "1-0"]
[Round "10"]
[TimeControl "180+1"]
[Date "2021.05.04"]
[WhiteClock "0:00:38"]
[BlackClock "0:00:27"]

1. d4 {[%clk 0:03:00]}  Nf6 {[%clk 0:02:23]} 2. Bf4 {[%clk 0:03:00]}  g6 {[%clk 0:02:20]} 3. Nc3 {[%clk 0:03:00]}  d5 {[%clk 0:02:20]} 4. e3 {[%clk 0:03:00]}  c6 {[%clk 0:02:17]} 5. Be2 {[%clk 0:02:57]}  Bg7 {[%clk 0:02:14]} 6. h4 {[%clk 0:02:57]}  h5 {[%clk 0:02:14]} 7. Nf3 {[%clk 0:02:56]}  Bg4 {[%clk 0:02:12]} 8. Ne5 {[%clk 0:02:56]}  Bxe2 {[%clk 0:02:13]} 9. Qxe2 {[%clk 0:02:56]}  Nfd7 {[%clk 0:02:12]} 10. Nxd7 {[%clk 0:02:53]}  Nxd7 {[%clk 0:02:13]} 11. O-O-O {[%clk 0:02:53]}  Qa5 {[%clk 0:02:03]} 12. Kb1 {[%clk 0:02:52]}  e5 {[%clk 0:01:57]} 13. dxe5 {[%clk 0:02:41]}  Nxe5 {[%clk 0:01:58]} 14. e4 {[%clk 0:02:37]}  O-O {[%clk 0:01:51]} 15. exd5 {[%clk 0:02:36]}  Rfe8 {[%clk 0:01:48]} 16. d6 {[%clk 0:02:02]}  Ng4 {[%clk 0:01:43]} 17. Qd2 {[%clk 0:02:02]}  Bxc3 {[%clk 0:01:37]} 18. bxc3 {[%clk 0:02:02]}  Re4 {[%clk 0:01:27]} 19. f3 {[%clk 0:01:42]}  Ra4 {[%clk 0:01:26]} 20. c4 {[%clk 0:01:38]}  Nf2 {[%clk 0:01:10]} 21. Qxa5 {[%clk 0:01:01]}  Rxa5 {[%clk 0:01:10]} 22. d7 {[%clk 0:00:52]}  Nxh1 {[%clk 0:01:05]} 23. Rxh1 {[%clk 0:00:42]}  Ra4 {[%clk 0:00:33]} 24. Re1 {[%clk 0:00:39]}  Kf8 {[%clk 0:00:27]} 25. Bh6+ {[%clk 0:00:38]} 1-0


[Site "https://www.chess.com"]

[Event "Titled Tuesday Blitz May 4 2021"]
[White "Sapunov, Evgeny"]
[Black "Gahan, M G"]
[WhiteFideId "4126661"]
[BlackFideId "5027373"]
[WhiteElo "2470"]
[BlackElo "2264"]
[Result "1-0"]
[Round "10"]
[TimeControl "180+1"]
[Date "2021.05.04"]
[WhiteClock "0:00:31"]
[BlackClock "0:00:03"]

1. c4 {[%clk 0:03:00]}  Nf6 {[%clk 0:03:00]} 2. Nf3 {[%clk 0:03:00]}  g6 {[%clk 0:03:00]} 3. Nc3 {[%clk 0:03:00]}  d5 {[%clk 0:02:59]} 4. cxd5 {[%clk 0:03:00]}  Nxd5 {[%clk 0:03:00]} 5. e4 {[%clk 0:03:00]}  Nxc3 {[%clk 0:03:00]} 6. dxc3 {[%clk 0:03:01]}  Qxd1+ {[%clk 0:03:00]} 7. Kxd1 {[%clk 0:03:02]}  Bg7 {[%clk 0:03:00]} 8. Bf4 {[%clk 0:03:01]}  c6 {[%clk 0:02:58]} 9. Kc2 {[%clk 0:03:01]}  Nd7 {[%clk 0:02:56]} 10. Nd2 {[%clk 0:02:58]}  O-O {[%clk 0:02:55]} 11. a4 {[%clk 0:02:57]}  Nf6 {[%clk 0:02:50]} 12. f3 {[%clk 0:02:57]}  Rd8 {[%clk 0:02:49]} 13. a5 {[%clk 0:02:56]}  Nh5 {[%clk 0:02:45]} 14. Be3 {[%clk 0:02:55]}  Be6 {[%clk 0:02:37]} 15. Nb3 {[%clk 0:02:51]}  Bxb3+ {[%clk 0:02:30]} 16. Kxb3 {[%clk 0:02:51]}  Be5 {[%clk 0:02:13]} 17. g3 {[%clk 0:02:46]}  Bc7 {[%clk 0:02:11]} 18. Be2 {[%clk 0:02:30]}  Ng7 {[%clk 0:01:44]} 19. Bc4 {[%clk 0:02:20]}  b5 {[%clk 0:01:34]} 20. axb6 {[%clk 0:02:15]}  axb6 {[%clk 0:01:35]} 21. f4 {[%clk 0:02:09]}  b5 {[%clk 0:01:28]} 22. Be2 {[%clk 0:02:08]}  e5 {[%clk 0:01:12]} 23. Rhd1 {[%clk 0:02:02]}  exf4 {[%clk 0:01:10]} 24. gxf4 {[%clk 0:02:02]}  Ne6 {[%clk 0:01:05]} 25. e5 {[%clk 0:02:00]}  Rxa1 {[%clk 0:00:57]} 26. Rxa1 {[%clk 0:01:59]}  g5 {[%clk 0:00:53]} 27. fxg5 {[%clk 0:01:56]}  Bxe5 {[%clk 0:00:52]} 28. h4 {[%clk 0:01:39]}  Bf4 {[%clk 0:00:36]} 29. Bxf4 {[%clk 0:01:19]}  Nxf4 {[%clk 0:00:37]} 30. Bf3 {[%clk 0:01:19]}  c5 {[%clk 0:00:33]} 31. Ra5 {[%clk 0:01:18]}  Rd3 {[%clk 0:00:17]} 32. Bc6 {[%clk 0:01:11]}  c4+ {[%clk 0:00:15]} 33. Kc2 {[%clk 0:01:05]}  Rh3 {[%clk 0:00:13]} 34. Bxb5 {[%clk 0:01:01]}  Rh2+ {[%clk 0:00:13]} 35. Kb1 {[%clk 0:00:57]}  Nd3 {[%clk 0:00:08]} 36. Bxc4 {[%clk 0:00:56]}  Nxb2 {[%clk 0:00:09]} 37. Bd5 {[%clk 0:00:52]}  Nd1 {[%clk 0:00:08]} 38. Rc5 {[%clk 0:00:49]}  Rxh4 {[%clk 0:00:08]} 39. Rc7 {[%clk 0:00:46]}  Rf4 {[%clk 0:00:08]} 40. Bb3 {[%clk 0:00:43]}  Ne3 {[%clk 0:00:07]} 41. Kc1 {[%clk 0:00:42]}  Kg7 {[%clk 0:00:07]} 42. Kd2 {[%clk 0:00:42]}  Ng4 {[%clk 0:00:07]} 43. c4 {[%clk 0:00:40]}  Kg6 {[%clk 0:00:07]} 44. c5 {[%clk 0:00:40]}  Ne5 {[%clk 0:00:07]} 45. Re7 {[%clk 0:00:34]}  Nc6 {[%clk 0:00:05]} 46. Rc7 {[%clk 0:00:33]}  Na5 {[%clk 0:00:03]} 47. Ba2 {[%clk 0:00:31]} 1-0


[Site "https://www.chess.com"]

[Event "Titled Tuesday Blitz May 4 2021"]
[White "Sarkar, Justin"]
[Black "Ashiev, Eduard"]
[WhiteFideId "2010011"]
[BlackFideId "4130090"]
[WhiteElo "2140"]
[BlackElo "2106"]
[Result "0-1"]
[Round "10"]
[TimeControl "180+1"]
[Date "2021.05.04"]
[WhiteClock "0:00:02"]
[BlackClock "0:00:16"]

1. d4 {[%clk 0:02:57]}  d6 {[%clk 0:02:59]} 2. e4 {[%clk 0:02:53]}  Nf6 {[%clk 0:02:57]} 3. Nc3 {[%clk 0:02:51]}  g6 {[%clk 0:02:57]} 4. f4 {[%clk 0:02:39]}  Bg7 {[%clk 0:02:57]} 5. Nf3 {[%clk 0:02:39]}  O-O {[%clk 0:02:57]} 6. Be3 {[%clk 0:02:29]}  b6 {[%clk 0:02:54]} 7. Bd3 {[%clk 0:02:19]}  c5 {[%clk 0:02:54]} 8. dxc5 {[%clk 0:01:39]}  bxc5 {[%clk 0:02:37]} 9. e5 {[%clk 0:01:34]}  Ng4 {[%clk 0:02:16]} 10. Bg1 {[%clk 0:01:00]}  Bb7 {[%clk 0:02:12]} 11. h3 {[%clk 0:00:48]}  Nh6 {[%clk 0:02:11]} 12. Be4 {[%clk 0:00:38]}  Bxe4 {[%clk 0:01:56]} 13. Nxe4 {[%clk 0:00:37]}  Nc6 {[%clk 0:01:47]} 14. c3 {[%clk 0:00:08]}  dxe5 {[%clk 0:01:30]} 15. Qxd8 {[%clk 0:00:08]}  Rfxd8 {[%clk 0:01:30]} 16. fxe5 {[%clk 0:00:07]}  Nxe5 {[%clk 0:01:27]} 17. Nxe5 {[%clk 0:00:05]}  Bxe5 {[%clk 0:01:27]} 18. Bxc5 {[%clk 0:00:05]}  f5 {[%clk 0:00:38]} 19. Nd2 {[%clk 0:00:03]}  Bf4 {[%clk 0:00:19]} 20. Nb3 {[%clk 0:00:03]}  Bg3+ {[%clk 0:00:18]} 21. Ke2 {[%clk 0:00:03]}  Rac8 {[%clk 0:00:18]} 22. Rad1 {[%clk 0:00:02]}  Rxd1 {[%clk 0:00:17]} 23. Rxd1 {[%clk 0:00:03]}  Kf7 {[%clk 0:00:17]} 24. Bxa7 {[%clk 0:00:03]}  Ra8 {[%clk 0:00:17]} 25. Rd7 {[%clk 0:00:02]}  Ke6 {[%clk 0:00:16]} 26. Rb7 {[%clk 0:00:02]}  Nf7 {[%clk 0:00:16]} 27. a4 {[%clk 0:00:02]}  Nd6 {[%clk 0:00:16]} 0-1


[Site "https://www.chess.com"]

[Event "Titled Tuesday Blitz May 4 2021"]
[White "Schut, Lisa"]
[Black "Eggleston, Thomas A"]
[WhiteFideId "1019481"]
[BlackFideId "412139"]
[WhiteElo "2234"]
[BlackElo "2174"]
[Result "0-1"]
[Round "10"]
[TimeControl "180+1"]
[Date "2021.05.04"]
[WhiteClock "0:00:14"]
[BlackClock "0:00:03"]

1. e4 {[%clk 0:03:00]}  e6 {[%clk 0:03:00]} 2. d4 {[%clk 0:03:00]}  d5 {[%clk 0:03:00]} 3. Nc3 {[%clk 0:03:01]}  Nf6 {[%clk 0:03:01]} 4. Bg5 {[%clk 0:02:55]}  dxe4 {[%clk 0:03:01]} 5. Nxe4 {[%clk 0:02:53]}  Be7 {[%clk 0:03:01]} 6. Bxf6 {[%clk 0:02:51]}  gxf6 {[%clk 0:03:02]} 7. g3 {[%clk 0:02:49]}  f5 {[%clk 0:03:01]} 8. Nc3 {[%clk 0:02:49]}  Nd7 {[%clk 0:02:58]} 9. Bg2 {[%clk 0:02:48]}  Nf6 {[%clk 0:02:57]} 10. Qd2 {[%clk 0:02:44]}  c6 {[%clk 0:02:54]} 11. O-O-O {[%clk 0:02:43]}  Qc7 {[%clk 0:02:53]} 12. Nf3 {[%clk 0:02:37]}  b6 {[%clk 0:02:49]} 13. Ne5 {[%clk 0:02:34]}  Bb7 {[%clk 0:02:49]} 14. Qh6 {[%clk 0:02:25]}  Nd7 {[%clk 0:02:09]} 15. Qg7 {[%clk 0:02:13]}  Rf8 {[%clk 0:02:09]} 16. Rhe1 {[%clk 0:01:48]}  Bf6 {[%clk 0:01:29]} 17. Qxh7 {[%clk 0:01:43]}  Nxe5 {[%clk 0:01:23]} 18. dxe5 {[%clk 0:01:32]}  Rh8 {[%clk 0:01:18]} 19. Qxh8+ {[%clk 0:01:00]}  Bxh8 {[%clk 0:01:17]} 20. f4 {[%clk 0:01:00]}  Ke7 {[%clk 0:01:14]} 21. Re3 {[%clk 0:00:55]}  Rd8 {[%clk 0:01:05]} 22. Red3 {[%clk 0:00:45]}  Rxd3 {[%clk 0:01:04]} 23. Rxd3 {[%clk 0:00:46]}  a6 {[%clk 0:01:01]} 24. h4 {[%clk 0:00:32]}  c5 {[%clk 0:01:00]} 25. Bxb7 {[%clk 0:00:32]}  Qxb7 {[%clk 0:00:59]} 26. b3 {[%clk 0:00:32]}  f6 {[%clk 0:00:58]} 27. Re3 {[%clk 0:00:15]}  fxe5 {[%clk 0:00:57]} 28. fxe5 {[%clk 0:00:16]}  Qc7 {[%clk 0:00:53]} 29. Ne2 {[%clk 0:00:15]}  Bxe5 {[%clk 0:00:52]} 30. c3 {[%clk 0:00:16]}  Kf6 {[%clk 0:00:50]} 31. Kc2 {[%clk 0:00:16]}  Kg6 {[%clk 0:00:43]} 32. Kd3 {[%clk 0:00:16]}  Qd6+ {[%clk 0:00:43]} 33. Kc2 {[%clk 0:00:16]}  Kh5 {[%clk 0:00:41]} 34. Rd3 {[%clk 0:00:16]}  Qc7 {[%clk 0:00:37]} 35. Re3 {[%clk 0:00:14]}  Kg4 {[%clk 0:00:36]} 36. Kd3 {[%clk 0:00:14]}  Bd6 {[%clk 0:00:30]} 37. Rxe6 {[%clk 0:00:13]}  Qd7 {[%clk 0:00:26]} 38. Rg6+ {[%clk 0:00:13]}  Kf3 {[%clk 0:00:24]} 39. Ng1+ {[%clk 0:00:11]}  Kg2 {[%clk 0:00:23]} 40. Ne2 {[%clk 0:00:11]}  Bf4+ {[%clk 0:00:20]} 41. Kc4 {[%clk 0:00:10]}  b5+ {[%clk 0:00:19]} 42. Kxc5 {[%clk 0:00:10]}  Qe7+ {[%clk 0:00:15]} 43. Kb6 {[%clk 0:00:10]}  Qxe2 {[%clk 0:00:15]} 44. gxf4+ {[%clk 0:00:10]}  Kf3 {[%clk 0:00:15]} 45. Kxa6 {[%clk 0:00:09]}  Kxf4 {[%clk 0:00:12]} 46. Ka5 {[%clk 0:00:09]}  Ke5 {[%clk 0:00:09]} 47. Kb4 {[%clk 0:00:09]}  f4 {[%clk 0:00:08]} 48. Rg8 {[%clk 0:00:09]}  f3 {[%clk 0:00:07]} 49. h5 {[%clk 0:00:09]}  Kf6 {[%clk 0:00:06]} 50. Rf8+ {[%clk 0:00:09]}  Kg7 {[%clk 0:00:06]} 51. Rf4 {[%clk 0:00:09]}  f2 {[%clk 0:00:05]} 52. h6+ {[%clk 0:00:08]}  Kxh6 {[%clk 0:00:05]} 53. Rf6+ {[%clk 0:00:09]}  Kg5 {[%clk 0:00:05]} 54. Rf8 {[%clk 0:00:09]}  f1=Q {[%clk 0:00:05]} 55. Rg8+ {[%clk 0:00:10]}  Kf4 {[%clk 0:00:05]} 56. Rf8+ {[%clk 0:00:10]}  Ke3 {[%clk 0:00:05]} 57. Rxf1 {[%clk 0:00:10]}  Qxf1 {[%clk 0:00:05]} 58. c4 {[%clk 0:00:10]}  bxc4 {[%clk 0:00:05]} 59. bxc4 {[%clk 0:00:11]}  Kd4 {[%clk 0:00:05]} 60. Ka5 {[%clk 0:00:11]}  Qxc4 {[%clk 0:00:05]} 61. a4 {[%clk 0:00:12]}  Qb3 {[%clk 0:00:04]} 62. Ka6 {[%clk 0:00:13]}  Kc5 {[%clk 0:00:04]} 63. Ka7 {[%clk 0:00:13]}  Kc6 {[%clk 0:00:04]} 64. Ka8 {[%clk 0:00:14]}  Qb7# {[%clk 0:00:03]} 0-1


[Site "https://www.chess.com"]

[Event "Titled Tuesday Blitz May 4 2021"]
[White "Serikbay, Assel"]
[Black "Ismayil, Malak"]
[WhiteFideId "13706799"]
[BlackFideId "13412604"]
[WhiteElo "2044"]
[BlackElo "1879"]
[Result "1-0"]
[Round "10"]
[TimeControl "180+1"]
[Date "2021.05.04"]
[WhiteClock "0:01:42"]
[BlackClock "0:00:55"]

1. e4 {[%clk 0:03:00]}  e5 {[%clk 0:02:54]} 2. Nf3 {[%clk 0:02:56]}  Nc6 {[%clk 0:02:54]} 3. Bb5 {[%clk 0:02:53]}  d6 {[%clk 0:02:53]} 4. d4 {[%clk 0:02:51]}  exd4 {[%clk 0:02:52]} 5. Nxd4 {[%clk 0:02:50]}  Bd7 {[%clk 0:02:51]} 6. O-O {[%clk 0:02:48]}  Nf6 {[%clk 0:02:50]} 7. Nc3 {[%clk 0:02:41]}  Be7 {[%clk 0:02:49]} 8. Nxc6 {[%clk 0:02:37]}  Bxc6 {[%clk 0:02:46]} 9. Bxc6+ {[%clk 0:02:30]}  bxc6 {[%clk 0:02:47]} 10. f4 {[%clk 0:02:31]}  O-O {[%clk 0:02:44]} 11. Be3 {[%clk 0:02:29]}  Nd7 {[%clk 0:02:43]} 12. Qg4 {[%clk 0:02:22]}  Bf6 {[%clk 0:02:39]} 13. e5 {[%clk 0:02:09]}  Be7 {[%clk 0:02:29]} 14. Rad1 {[%clk 0:02:07]}  d5 {[%clk 0:02:23]} 15. Ne2 {[%clk 0:02:00]}  f6 {[%clk 0:02:06]} 16. Nd4 {[%clk 0:01:47]}  fxe5 {[%clk 0:01:00]} 17. Ne6 {[%clk 0:01:43]}  Qc8 {[%clk 0:00:55]} 18. Qxg7# {[%clk 0:01:42]} 1-0


[Site "https://www.chess.com"]

[Event "Titled Tuesday Blitz May 4 2021"]
[White "Seul, Georg"]
[Black "Aliavdin, Nikolai"]
[WhiteFideId "4601653"]
[BlackFideId "13502883"]
[WhiteElo "2332"]
[BlackElo "2268"]
[Result "0-1"]
[Round "10"]
[TimeControl "180+1"]
[Date "2021.05.04"]
[WhiteClock "0:00:09"]
[BlackClock "0:00:59"]

1. e4 {[%clk 0:03:00]}  c5 {[%clk 0:02:59]} 2. Nf3 {[%clk 0:03:00]}  d6 {[%clk 0:03:00]} 3. Bc4 {[%clk 0:02:59]}  Nf6 {[%clk 0:02:58]} 4. d3 {[%clk 0:02:59]}  Nc6 {[%clk 0:02:57]} 5. c3 {[%clk 0:02:57]}  g6 {[%clk 0:02:57]} 6. Bb3 {[%clk 0:02:55]}  Bg7 {[%clk 0:02:57]} 7. h3 {[%clk 0:02:55]}  O-O {[%clk 0:02:56]} 8. O-O {[%clk 0:02:55]}  b5 {[%clk 0:02:56]} 9. Re1 {[%clk 0:02:54]}  b4 {[%clk 0:02:48]} 10. d4 {[%clk 0:02:54]}  bxc3 {[%clk 0:02:48]} 11. Nxc3 {[%clk 0:02:33]}  cxd4 {[%clk 0:02:45]} 12. Nxd4 {[%clk 0:02:33]}  Nxd4 {[%clk 0:02:42]} 13. Qxd4 {[%clk 0:02:32]}  Bb7 {[%clk 0:02:41]} 14. Qd3 {[%clk 0:02:18]}  Nd7 {[%clk 0:02:39]} 15. Bd5 {[%clk 0:02:16]}  Nc5 {[%clk 0:02:36]} 16. Qg3 {[%clk 0:01:52]}  Rb8 {[%clk 0:02:25]} 17. Bg5 {[%clk 0:01:50]}  Ne6 {[%clk 0:02:12]} 18. Bxe6 {[%clk 0:01:35]}  fxe6 {[%clk 0:02:10]} 19. Rad1 {[%clk 0:01:32]}  Qe8 {[%clk 0:02:03]} 20. Qh4 {[%clk 0:01:28]}  Rf7 {[%clk 0:01:54]} 21. Rd2 {[%clk 0:01:22]}  Bc6 {[%clk 0:01:45]} 22. Be3 {[%clk 0:01:18]}  Rb7 {[%clk 0:01:41]} 23. Qg5 {[%clk 0:01:14]}  Qb8 {[%clk 0:01:35]} 24. Bd4 {[%clk 0:00:29]}  Bxd4 {[%clk 0:01:11]} 25. Rxd4 {[%clk 0:00:28]}  Rxb2 {[%clk 0:01:10]} 26. e5 {[%clk 0:00:26]}  Qb6 {[%clk 0:01:00]} 27. Rf4 {[%clk 0:00:09]}  Rxf2 {[%clk 0:00:59]} 0-1


[Site "https://www.chess.com"]

[Event "Titled Tuesday Blitz May 4 2021"]
[White "Shipov, Sergei"]
[Black "Piesik, Piotr"]
[WhiteFideId "4113624"]
[BlackFideId "1136194"]
[WhiteElo "2744"]
[BlackElo "2369"]
[Result "1-0"]
[Round "10"]
[TimeControl "180+1"]
[Date "2021.05.04"]
[WhiteClock "0:00:07"]
[BlackClock "0:00:02"]

1. d4 {[%clk 0:02:59]}  c5 {[%clk 0:00:15]} 2. d5 {[%clk 0:00:16]}  e5 {[%clk 0:00:15]} 3. e4 {[%clk 0:00:16]}  d6 {[%clk 0:00:16]} 4. a4 {[%clk 0:00:16]}  Be7 {[%clk 0:00:15]} 5. Na3 {[%clk 0:00:16]}  a6 {[%clk 0:00:15]} 6. Nc4 {[%clk 0:00:15]}  Qc7 {[%clk 0:00:13]} 7. a5 {[%clk 0:00:15]}  Nd7 {[%clk 0:00:13]} 8. Bd2 {[%clk 0:00:16]}  b5 {[%clk 0:00:13]} 9. axb6 {[%clk 0:00:15]}  Qb7 {[%clk 0:00:12]} 10. Ba5 {[%clk 0:00:15]}  Ngf6 {[%clk 0:00:12]} 11. Bd3 {[%clk 0:00:15]}  O-O {[%clk 0:00:12]} 12. Nf3 {[%clk 0:00:14]}  Ne8 {[%clk 0:00:12]} 13. Ra3 {[%clk 0:00:14]}  Bd8 {[%clk 0:00:11]} 14. Nfd2 {[%clk 0:00:13]}  Ndf6 {[%clk 0:00:11]} 15. O-O {[%clk 0:00:12]}  Bd7 {[%clk 0:00:11]} 16. Rb3 {[%clk 0:00:12]}  Bb5 {[%clk 0:00:11]} 17. Qe2 {[%clk 0:00:13]}  Nd7 {[%clk 0:00:10]} 18. Na3 {[%clk 0:00:12]}  Bxd3 {[%clk 0:00:10]} 19. Qxd3 {[%clk 0:00:12]}  Rb8 {[%clk 0:00:10]} 20. Nac4 {[%clk 0:00:12]}  Qc8 {[%clk 0:00:08]} 21. Ra1 {[%clk 0:00:12]}  Rb7 {[%clk 0:00:06]} 22. h3 {[%clk 0:00:11]}  g6 {[%clk 0:00:05]} 23. Bc3 {[%clk 0:00:11]}  Nb8 {[%clk 0:00:03]} 24. Nf3 {[%clk 0:00:08]}  f5 {[%clk 0:00:03]} 25. Nfd2 {[%clk 0:00:07]}  Bg5 {[%clk 0:00:02]} 26. Qe2 {[%clk 0:00:07]} 1-0


[Site "https://www.chess.com"]

[Event "Titled Tuesday Blitz May 4 2021"]
[White "Shtyka, Sergey"]
[Black "Juhasz, Agoston"]
[WhiteFideId "4138465"]
[BlackFideId "778346"]
[WhiteElo "2102"]
[BlackElo "2211"]
[Result "1-0"]
[Round "10"]
[TimeControl "180+1"]
[Date "2021.05.04"]
[WhiteClock "0:00:07"]
[BlackClock "0:00:09"]

1. e4 {[%clk 0:02:24]}  c6 {[%clk 0:02:56]} 2. Nf3 {[%clk 0:02:22]}  d5 {[%clk 0:02:53]} 3. Nc3 {[%clk 0:02:22]}  g6 {[%clk 0:02:51]} 4. d3 {[%clk 0:02:20]}  Bg7 {[%clk 0:02:51]} 5. exd5 {[%clk 0:02:19]}  cxd5 {[%clk 0:02:51]} 6. g3 {[%clk 0:02:18]}  Nc6 {[%clk 0:02:50]} 7. Bg2 {[%clk 0:02:18]}  e5 {[%clk 0:02:46]} 8. O-O {[%clk 0:02:17]}  Nge7 {[%clk 0:02:47]} 9. Re1 {[%clk 0:02:10]}  O-O {[%clk 0:02:45]} 10. Bg5 {[%clk 0:02:06]}  f6 {[%clk 0:02:34]} 11. Bd2 {[%clk 0:02:05]}  Bg4 {[%clk 0:02:21]} 12. h3 {[%clk 0:02:02]}  Bf5 {[%clk 0:02:20]} 13. Ne2 {[%clk 0:01:48]}  Qd7 {[%clk 0:02:14]} 14. Kh2 {[%clk 0:01:46]}  Rad8 {[%clk 0:02:04]} 15. d4 {[%clk 0:01:33]}  e4 {[%clk 0:01:57]} 16. Nfg1 {[%clk 0:01:28]}  g5 {[%clk 0:01:51]} 17. g4 {[%clk 0:01:21]}  Be6 {[%clk 0:01:48]} 18. c3 {[%clk 0:01:18]}  f5 {[%clk 0:01:26]} 19. gxf5 {[%clk 0:01:16]}  Rxf5 {[%clk 0:01:25]} 20. Ng3 {[%clk 0:01:13]}  Rxf2 {[%clk 0:01:16]} 21. Bxg5 {[%clk 0:01:10]}  Rdf8 {[%clk 0:01:09]} 22. Re2 {[%clk 0:01:09]}  Rxe2 {[%clk 0:00:44]} 23. Qxe2 {[%clk 0:01:03]}  Nf5 {[%clk 0:00:45]} 24. Nxf5 {[%clk 0:00:59]}  Rxf5 {[%clk 0:00:46]} 25. Bh4 {[%clk 0:00:56]}  Bh6 {[%clk 0:00:36]} 26. Bg3 {[%clk 0:00:54]}  Rg5 {[%clk 0:00:30]} 27. Bf4 {[%clk 0:00:49]}  Rg6 {[%clk 0:00:23]} 28. Bxh6 {[%clk 0:00:48]}  Rxh6 {[%clk 0:00:24]} 29. Rf1 {[%clk 0:00:47]}  Qd6+ {[%clk 0:00:21]} 30. Kh1 {[%clk 0:00:45]}  Qg3 {[%clk 0:00:21]} 31. Qf2 {[%clk 0:00:43]}  Qxf2 {[%clk 0:00:20]} 32. Rxf2 {[%clk 0:00:43]}  Kg7 {[%clk 0:00:20]} 33. Kh2 {[%clk 0:00:41]}  Rf6 {[%clk 0:00:21]} 34. Rd2 {[%clk 0:00:31]}  b5 {[%clk 0:00:20]} 35. b3 {[%clk 0:00:27]}  a5 {[%clk 0:00:20]} 36. c4 {[%clk 0:00:27]}  bxc4 {[%clk 0:00:18]} 37. bxc4 {[%clk 0:00:27]}  Nb4 {[%clk 0:00:15]} 38. c5 {[%clk 0:00:24]}  Bd7 {[%clk 0:00:12]} 39. a3 {[%clk 0:00:22]}  Nd3 {[%clk 0:00:11]} 40. Kg3 {[%clk 0:00:18]}  Bb5 {[%clk 0:00:12]} 41. Ne2 {[%clk 0:00:18]}  Rg6+ {[%clk 0:00:11]} 42. Kh2 {[%clk 0:00:17]}  Ne1 {[%clk 0:00:10]} 43. Nc3 {[%clk 0:00:16]}  Bc4 {[%clk 0:00:06]} 44. Nd1 {[%clk 0:00:12]}  Kf7 {[%clk 0:00:05]} 45. Ne3 {[%clk 0:00:12]}  Bd3 {[%clk 0:00:05]} 46. Rf2+ {[%clk 0:00:10]}  Ke6 {[%clk 0:00:05]} 47. h4 {[%clk 0:00:10]}  h5 {[%clk 0:00:05]} 48. Bh3+ {[%clk 0:00:10]}  Ke7 {[%clk 0:00:03]} 49. Nf5+ {[%clk 0:00:10]}  Kd8 {[%clk 0:00:02]} 50. Bg2 {[%clk 0:00:09]}  Nf3+ {[%clk 0:00:02]} 51. Bxf3 {[%clk 0:00:08]}  exf3 {[%clk 0:00:03]} 52. Ne3 {[%clk 0:00:07]}  Be4 {[%clk 0:00:03]} 53. a4 {[%clk 0:00:05]}  Rf6 {[%clk 0:00:03]} 54. Nd1 {[%clk 0:00:04]}  Kc7 {[%clk 0:00:04]} 55. Ne3 {[%clk 0:00:04]}  Rf4 {[%clk 0:00:04]} 56. Kg3 {[%clk 0:00:04]}  Rf8 {[%clk 0:00:05]} 57. Nf1 {[%clk 0:00:03]}  Rg8+ {[%clk 0:00:05]} 58. Kh2 {[%clk 0:00:03]}  Rg2+ {[%clk 0:00:05]} 59. Rxg2 {[%clk 0:00:03]}  fxg2 {[%clk 0:00:06]} 60. Ne3 {[%clk 0:00:03]}  Kd7 {[%clk 0:00:05]} 61. Nxg2 {[%clk 0:00:03]}  Bf3 {[%clk 0:00:04]} 62. Nf4 {[%clk 0:00:02]}  Bd1 {[%clk 0:00:05]} 63. Kg3 {[%clk 0:00:02]}  Bxa4 {[%clk 0:00:05]} 64. Nxh5 {[%clk 0:00:03]}  Bd1 {[%clk 0:00:04]} 65. Nf4 {[%clk 0:00:03]}  a4 {[%clk 0:00:05]} 66. Nd3 {[%clk 0:00:04]}  a3 {[%clk 0:00:05]} 67. Nc1 {[%clk 0:00:04]}  Bb3 {[%clk 0:00:05]} 68. Nxb3 {[%clk 0:00:02]}  a2 {[%clk 0:00:04]} 69. Na1 {[%clk 0:00:03]}  Kc6 {[%clk 0:00:04]} 70. Kf4 {[%clk 0:00:04]}  Kb5 {[%clk 0:00:04]} 71. h5 {[%clk 0:00:05]}  Kb4 {[%clk 0:00:05]} 72. h6 {[%clk 0:00:06]}  Kc3 {[%clk 0:00:06]} 73. h7 {[%clk 0:00:06]}  Kb2 {[%clk 0:00:07]} 74. h8=Q {[%clk 0:00:07]}  Kxa1 {[%clk 0:00:07]} 75. Qa8 {[%clk 0:00:06]}  Kb2 {[%clk 0:00:08]} 76. Qxa2+ {[%clk 0:00:06]}  Kxa2 {[%clk 0:00:09]} 77. Ke5 {[%clk 0:00:07]} 1-0


[Site "https://www.chess.com"]